bitfinex/quotes_SOLUSD_20250402
["timestamp","ask_amount","ask_price","bid_price","bid_amount"]
[1743624969948,0.14216157,134.37,134.25,58.01827338]
[1743624970256,255.54,134.42,134.33,58.01827338]
[1743624970457,58.01827338,134.42,134.22,37.86902034]
[1743624970664,0.14216157,134.42,134.2,18.65547688]
[1743624970863,26.0,134.34,134.13,58.01827338]
[1743624971051,58.01827338,134.24,134.16,30.0]
[1743624971250,58.01827338,134.18,134.16,30.0]
[1743624971555,26.0,134.22,133.96,58.01827338]
[1743624971748,255.42,134.29,134.02,37.44713865]
[1743624972083,7.4421,134.37,134.32,26.0]
[1743624972260,7.4421,134.37,134.36,58.01827338]
[1743624972460,7.4421,134.37,134.2,0.14216157]
[1743624972771,255.42,134.51,134.15,18.65547688]
[1743624972772,44.6395,134.41,134.15,18.65547688]
[1743624972979,63.2393,134.41,134.32,58.01827338]
[1743624973183,0.14216157,134.4,134.16,0.28432314]
[1743624973362,18.5998,134.41,134.32,58.01827338]
[1743624973548,0.03,134.44,134.19,37.53660301]
[1743624973747,0.03,134.44,134.38,58.01827338]
[1743624973974,0.03,134.44,134.41,58.01827338]
[1743624974190,0.03,134.44,134.21,0.28432314]
[1743624974191,65.45707338,134.43,134.21,0.28432314]
[1743624974473,65.45707338,134.43,134.22,18.64964886]
[1743624974474,7.4388,134.43,134.22,18.64964886]
[1743624974680,0.03,134.44,134.2,255.46]
[1743624974681,0.03,134.44,134.35,0.28432314]
[1743624974971,0.03,134.44,134.3,58.01827338]
[1743624974972,0.03,134.44,134.43,77.09440695]
[1743624975276,7.431,134.57,134.47,18.64964886]
[1743624975483,257.950352,134.7,134.51,0.14216157]
[1743624975787,257.950352,134.7,134.57,58.01827338]
[1743624975983,2.490352,134.7,134.57,76.81008381]
[1743624976184,2.490352,134.7,134.61,26.0]
[1743624976393,2.490352,134.7,134.65,84.01827338]
[1743624976572,2.490352,134.7,134.62,18.64964886]
[1743624976762,2.490352,134.7,134.58,0.14216157]
[1743624976763,2.490352,134.7,134.68,58.01827338]
[1743624977185,7.4161,134.84,134.72,26.0]
[1743624977379,7.4161,134.84,134.66,26.0]
[1743624977570,7.4161,134.84,134.74,26.0]
[1743624977774,18.5362,134.88,134.74,26.0]
[1743624977961,7.415,134.87,134.75,26.14216157]
[1743624978162,58.01827338,134.8,134.68,0.28432314]
[1743624978363,7.4161,134.84,134.62,19.07613357]
[1743624978567,7.4161,134.84,134.64,58.01827338]
[1743624978779,25.9565,134.84,134.72,58.01827338]
[1743624978993,25.9565,134.84,134.68,26.0]
[1743624978994,7.4161,134.84,134.76,58.01827338]
[1743624979297,7.4147,134.87,134.79,58.01827338]
[1743624979589,2.490352,134.96,134.82,18.64964886]
[1743624979888,2.490352,134.96,134.8,0.28432314]
[1743624980099,7.4101,134.95,134.84,26.14216157]
[1743624980277,2.490352,134.96,134.84,58.01827338]
[1743624980461,2.490352,134.96,134.84,26.0]
[1743624980663,2.490352,134.96,134.74,0.42648471]
[1743624980964,46.948152,134.96,134.73,19.07613357]
[1743624981166,26.0,134.93,134.84,58.01827338]
[1743624981363,28.424152,134.96,134.76,26.0]
[1743624981586,26.0,134.93,134.65,7.4266]
[1743624981790,255.06,134.94,134.65,25.9932]
[1743624981966,0.14216157,134.93,134.68,26.0]
[1743624982166,0.42648471,134.93,134.65,25.9932]
[1743624982372,0.42648471,134.93,134.68,26.0]
[1743624982679,0.28432314,134.95,134.83,58.01827338]
[1743624982883,0.28432314,134.95,134.89,58.01827338]
[1743624982884,0.14216157,134.93,134.89,58.01827338]
[1743624983101,2.490352,134.96,134.8,26.0]
[1743624983401,2.490352,134.96,134.85,0.42648471]
[1743624983574,28.424152,134.96,134.67,0.42648471]
[1743624983774,26.0,134.93,134.68,0.28432314]
[1743624983975,0.5,134.89,134.68,0.14216157]
[1743624984178,26.0,134.85,134.67,0.14216157]
[1743624984483,26.0,134.78,134.54,7.4327]
[1743624984685,26.0,134.85,134.54,7.4327]
[1743624984686,0.42648471,134.92,134.7,58.01827338]
[1743624984882,26.25442314,134.77,134.51,26.0201]
[1743624985179,0.42648471,134.84,134.54,0.5]
[1743624985383,0.42648471,134.84,134.64,58.01827338]
[1743624985597,1.39218959,134.83,134.67,26.0]
[1743624985901,0.14216157,134.95,134.82,58.01827338]
[1743624986209,7.4416,134.93,134.75,0.28432314]
[1743624986380,7.4416,134.93,134.74,26.0]
[1743624986583,7.4416,134.93,134.75,0.28432314]
[1743624986783,0.03,134.93,134.75,0.28432314]
[1743624986991,0.03,134.93,134.8,0.42648471]
[1743624987196,0.03,134.93,134.8,0.14216157]
[1743624987386,0.03,134.93,134.77,0.28432314]
[1743624988007,0.03,134.93,134.84,26.0]
[1743624988180,0.03,134.93,134.85,0.42648471]
[1743624988602,0.03,134.93,134.92,58.01827338]
[1743624988803,0.03,134.93,134.84,26.0]
[1743624989004,0.03,134.93,134.92,58.01827338]
[1743624989198,0.03,134.93,134.92,58.44475809]
[1743624989399,0.03,134.93,134.72,274.62]
[1743624989583,0.03,134.93,134.82,0.42648471]
[1743624989786,58.01827338,134.9,134.82,0.28432314]
[1743624989980,26.03,134.93,134.64,115.21998015]
[1743624989981,26.03,134.93,134.65,25.9932]
[1743624990381,0.03,134.93,134.65,25.9932]
[1743624991009,0.45648471,134.93,134.81,58.01827338]
[1743624991217,9.900352,134.96,134.68,37.63303954]
[1743624991426,2.490352,134.96,134.81,58.01827338]
[1743624991587,2.490352,134.96,134.95,58.01827338]
[1743624991788,4.0,135.0,134.98,26.0]
[1743624992202,4.0,135.0,134.99,26.0]
[1743624992519,0.19955,135.3,135.03,26.0]
[1743624992725,0.19955,135.3,135.01,26.0]
[1743624993012,37.15615,135.3,135.13,58.01827338]
[1743624993185,37.15615,135.3,135.03,7.4057]
[1743624993186,7.3932,135.26,135.08,26.14216157]
[1743624993385,18.48,135.29,135.12,26.0]
[1743624993612,9.885752,135.22,134.96,7.4096]
[1743624993821,65.350752,135.22,134.99,0.28432314]
[1743624993996,28.374052,135.22,135.0,0.14216157]
[1743624994385,28.374052,135.22,134.99,0.14216157]
[1743624994597,0.28432314,135.2,134.98,58.01827338]
[1743624994814,0.14216157,135.2,135.02,0.14216157]
[1743624994985,2.490352,135.22,135.19,58.01827338]
[1743624995191,2.490352,135.22,135.08,44.14294016]
[1743624995192,2.490352,135.22,135.11,26.0]
[1743624995709,2.490352,135.22,135.21,58.01827338]
[1743624996098,0.19955,135.3,135.24,26.0]
[1743624996417,0.19955,135.3,135.29,58.01827338]
[1743624996604,0.19955,135.3,135.17,0.5]
[1743624996809,2.490352,135.48,135.32,26.0]
[1743624997117,7.3817,135.47,135.35,26.0]
[1743624997410,2.490352,135.48,135.35,26.0]
[1743624997411,5.6756152,135.48,135.35,26.0]
[1743624997913,5.6756152,135.48,135.34,26.0]
[1743624998119,5.6756152,135.48,135.31,62.818]
[1743624998416,5.6756152,135.48,135.31,7.3899]
[1743624998615,5.6756152,135.48,135.32,58.01827338]
[1743624998800,5.6756152,135.48,135.35,26.0]
[1743624999005,5.6756152,135.48,135.32,58.01827338]
[1743624999309,13.0569152,135.48,135.32,58.01827338]
[1743624999512,5.6756152,135.48,135.23,36.9726]
[1743624999696,5.6756152,135.48,135.24,0.5]
[1743624999903,5.6756152,135.48,135.35,26.0]
[1743625000098,5.6756152,135.48,135.33,8.12383953]
[1743625000290,5.6756152,135.48,135.36,26.0]
[1743625000691,5.6756152,135.48,135.33,36.49600652]
[1743625000692,8.47107697,135.6,135.47,57.43710652]
[1743625000912,8.47107697,135.6,135.39,7.386]
[1743625000913,1.09647697,135.6,135.39,7.386]
[1743625001119,1.09647697,135.6,135.52,26.0]
[1743625001490,1.09647697,135.6,135.59,57.43710652]
[1743625001900,2.4334723,135.74,135.62,26.0]
[1743625002109,2.4334723,135.74,135.53,10.42060191]
[1743625002413,2.4334723,135.74,135.73,57.43710652]
[1743625002618,2.4334723,135.74,135.59,10.42060191]
[1743625002619,1.4334723,135.74,135.5,36.00343652]
[1743625002919,1.4334723,135.74,135.62,7.3735]
[1743625003215,1.4334723,135.74,135.69,26.0]
[1743625003510,1.4334723,135.74,135.62,7.3735]
[1743625003717,1.4334723,135.74,135.64,10.31710492]
[1743625003911,7.3675,135.73,135.57,10.31710492]
[1743625004112,7.3675,135.73,135.5,25.8301]
[1743625004308,1.4334723,135.74,135.5,62.7304]
[1743625004493,1.4334723,135.74,135.53,26.0]
[1743625004697,1.4334723,135.74,135.69,26.0]
[1743625004894,1.4334723,135.74,135.69,33.3692]
[1743625005101,1.4334723,135.74,135.72,26.0]
[1743625005304,1.4334723,135.74,135.51,20.0]
[1743625005305,8.8004723,135.74,135.51,20.0]
[1743625005521,8.8004723,135.74,135.49,57.43710652]
[1743625005717,1.4334723,135.74,135.49,57.43710652]
[1743625006028,1.4334723,135.74,135.55,0.5]
[1743625006202,1.4334723,135.74,135.55,253.18]
[1743625006611,1.4334723,135.74,135.56,9.45156839]
[1743625006914,1.4334723,135.74,135.57,25.8168]
[1743625007117,66.23787882,135.74,135.57,7.3762]
[1743625007322,57.43710652,135.66,135.49,57.43710652]
[1743625007498,57.43710652,135.6,135.48,27.34404757]
[1743625007698,0.5,135.63,135.48,27.34404757]
[1743625007900,1.39218959,135.62,135.34,0.41058073]
[1743625008100,1.39218959,135.62,135.34,0.91058073]
[1743625008300,57.43710652,135.44,135.34,0.41058073]
[1743625008498,57.43710652,135.42,135.34,0.41058073]
[1743625008710,26.0,135.51,135.34,0.91058073]
[1743625008921,26.0,135.63,135.45,57.43710652]
[1743625009124,26.0,135.64,135.4,0.5]
[1743625009300,253.18,135.67,135.37,0.5]
[1743625009301,57.43710652,135.56,135.37,0.5]
[1743625009499,26.0,135.64,135.42,0.5]
[1743625009824,36.99734158,135.73,135.47,26.0]
[1743625010010,36.99734158,135.73,135.36,35.53704247]
[1743625010011,57.43710652,135.66,135.4,0.5]
[1743625010206,36.99734158,135.73,135.34,0.41058073]
[1743625010400,57.43710652,135.5,135.34,0.41058073]
[1743625010595,253.2,135.6,135.38,0.5]
[1743625010805,26.0,135.57,135.35,0.5]
[1743625011016,0.14216157,135.56,135.41,57.43710652]
[1743625011195,1.39218959,135.56,135.49,57.43710652]
[1743625011527,253.2,135.6,135.39,0.14216157]
[1743625011725,253.2,135.7,135.52,0.5]
[1743625011909,0.14216157,135.68,135.45,0.14216157]
[1743625012111,57.43710652,135.57,135.45,0.14216157]
[1743625012412,57.43710652,135.57,135.4,253.2]
[1743625012413,0.14216157,135.62,135.47,0.5]
[1743625012602,0.14216157,135.62,135.44,0.5]
[1743625012805,57.43710652,135.49,135.32,57.93710652]
[1743625012999,0.28432314,135.5,135.29,253.16]
[1743625013206,57.43710652,135.43,135.29,253.16]
[1743625013407,0.28432314,135.47,135.25,0.063]
[1743625013601,57.43710652,135.66,135.34,0.91058073]
[1743625013809,310.59710652,135.66,135.44,0.5]
[1743625014014,57.43710652,135.52,135.38,0.5]
[1743625014324,57.43710652,135.47,135.39,57.93710652]
[1743625014529,57.43710652,135.47,135.34,0.41058073]
[1743625014707,57.43710652,135.43,135.34,0.41058073]
[1743625015027,57.43710652,135.35,135.34,0.41058073]
[1743625015235,26.0,135.32,135.12,253.62]
[1743625015528,57.43710652,135.26,135.08,0.5]
[1743625015831,0.28432314,135.24,135.06,0.5]
[1743625016043,19.07613357,135.38,135.16,0.5]
[1743625016334,57.43710652,135.31,135.2,0.14216157]
[1743625016500,57.43710652,135.24,135.09,1.0]
[1743625016824,0.14216157,135.37,135.23,57.43710652]
[1743625017017,18.64964886,135.37,135.09,1.0]
[1743625017214,57.43710652,135.19,135.11,57.43710652]
[1743625017416,1.39218959,135.36,135.09,1.5]
[1743625017617,1.39218959,135.36,135.1,0.5]
[1743625017818,18.933972,135.31,135.09,1.0]
[1743625018006,0.14216157,135.33,135.1,0.5]
[1743625018212,1.39218959,135.36,135.15,0.5]
[1743625018404,1.39218959,135.36,135.2,0.14216157]
[1743625018606,1.39218959,135.36,135.24,0.14216157]
[1743625018812,57.43710652,135.49,135.29,0.64216157]
[1743625019024,7.43710652,135.49,135.25,0.5]
[1743625019206,57.43710652,135.35,135.23,0.5]
[1743625019413,57.43710652,135.36,135.23,0.5]
[1743625019621,1.39218959,135.48,135.33,57.43710652]
[1743625019822,1.39218959,135.48,135.34,57.43710652]
[1743625020027,1.39218959,135.48,135.37,0.14216157]
[1743625020223,18.65547688,135.61,135.27,0.5]
[1743625020423,9.53154277,135.6,135.41,0.5]
[1743625020734,1.39218959,135.6,135.46,26.0]
[1743625021029,1.39218959,135.6,135.53,57.43710652]
[1743625021236,57.43710652,135.83,135.59,57.43710652]
[1743625021416,57.43710652,135.7,135.57,26.0]
[1743625021734,57.43710652,135.83,135.56,0.5]
[1743625021927,253.3,135.84,135.56,0.14216157]
[1743625022144,57.43710652,135.63,135.51,19.07613357]
[1743625022310,2.85566189,135.74,135.53,26.0]
[1743625022616,0.14216157,135.73,135.51,18.79181043]
[1743625022819,2.85566189,135.74,135.57,0.5]
[1743625023019,2.85566189,135.74,135.53,18.64964886]
[1743625023219,2.85566189,135.74,135.5,253.3]
[1743625023529,2.85566189,135.74,135.28,20.063]
[1743625023530,26.0,135.66,135.47,0.5]
[1743625023722,0.14216157,135.69,135.59,0.5]
[1743625024029,2.85566189,135.74,135.58,26.0]
[1743625024255,2.85566189,135.74,135.49,0.14216157]
[1743625024538,57.43710652,135.59,135.51,57.43710652]
[1743625024831,14.45393385,135.89,135.61,0.5]
[1743625025039,57.43710652,135.83,135.58,253.16]
[1743625025337,26.0,135.8,135.58,253.16]
[1743625025633,253.16,135.81,135.51,0.5]
[1743625025845,253.16,135.81,135.49,57.43710652]
[1743625025846,99.462,135.73,135.6,57.43710652]
[1743625026010,26.0,135.65,135.46,0.5]
[1743625026214,57.43710652,135.61,135.46,0.5]
[1743625026428,57.43710652,135.61,135.43,0.14216157]
[1743625026429,99.462,135.73,135.55,57.43710652]
[1743625026762,99.462,135.73,135.43,0.14216157]
[1743625026763,57.43710652,135.64,135.52,26.5]
[1743625026917,0.28432314,135.65,135.47,0.5]
[1743625027117,19.07613357,135.71,135.48,0.5]
[1743625027332,0.28432314,135.62,135.42,253.66]
[1743625027532,1.39218959,135.61,135.47,0.5]
[1743625027836,26.0,135.57,135.38,0.5]
[1743625028040,26.0,135.56,135.37,0.5]
[1743625028251,25.8111,135.6,135.39,0.5]
[1743625028434,19.07613357,135.59,135.49,57.43710652]
[1743625028738,19.07613357,135.59,135.55,0.5]
[1743625028739,1.39218959,135.59,135.55,0.5]
[1743625029042,25.8094,135.61,135.49,0.5]
[1743625029544,0.14216157,135.6,135.47,0.5]
[1743625029725,253.1,135.7,135.54,57.43710652]
[1743625029927,1.39218959,135.69,135.46,0.14216157]
[1743625030126,1.39218959,135.69,135.34,253.06]
[1743625030127,26.0,135.63,135.34,253.06]
[1743625030327,26.0,135.5,135.28,0.563]
[1743625030520,26.0,135.46,135.28,0.063]
[1743625030724,19.07613357,135.41,135.28,0.063]
[1743625030923,26.0,135.38,135.28,0.063]
[1743625031122,0.42648471,135.45,135.28,0.563]
[1743625031322,19.07613357,135.45,135.31,0.5]
[1743625031621,0.28432314,135.49,135.3,0.5]
[1743625031848,0.28432314,135.47,135.38,0.063]
[1743625032043,18.4529,135.48,135.38,0.063]
[1743625032244,57.43710652,135.39,135.28,0.063]
[1743625032540,0.14216157,135.39,135.28,0.063]
[1743625032745,18.4529,135.48,135.28,0.063]
[1743625032746,57.43710652,135.37,135.28,0.063]
[1743625032944,0.28432314,135.34,135.28,0.063]
[1743625033119,0.28432314,135.34,135.1,0.5]
[1743625033120,26.0,135.26,135.1,0.5]
[1743625033322,26.0,135.28,135.19,0.0001]
[1743625033525,76.51324009,135.2,135.19,0.0001]
[1743625033743,7.398,135.17,135.09,1.0]
[1743625033928,37.73161045,135.37,135.21,0.5]
[1743625034131,26.42648471,135.33,135.16,0.5]
[1743625034328,26.0,135.33,135.2,0.063]
[1743625034738,26.0,135.32,135.22,0.5]
[1743625035048,1.39218959,135.36,135.29,57.43710652]
[1743625035349,253.12,135.6,135.29,0.5]
[1743625035555,253.12,135.6,135.34,57.43710652]
[1743625035767,57.43710652,135.49,135.28,0.5]
[1743625036054,18.65547688,135.55,135.35,57.43710652]
[1743625036229,1.39218959,135.49,135.33,0.5]
[1743625036430,1.39218959,135.49,135.29,19.07613357]
[1743625036431,25.8225,135.54,135.4,0.5]
[1743625036658,7.3778,135.54,135.43,0.5]
[1743625036831,57.43710652,135.48,135.4,18.64964886]
[1743625037033,25.8225,135.54,135.39,0.5]
[1743625037354,7.3778,135.54,135.48,0.5]
[1743625037540,7.3762,135.57,135.45,0.5]
[1743625037741,7.3762,135.57,135.4,0.5]
[1743625037742,57.43710652,135.51,135.4,0.5]
[1743625038055,57.43710652,135.44,135.3,0.5]
[1743625038259,0.28432314,135.48,135.31,0.5]
[1743625038552,57.43710652,135.38,135.26,0.5]
[1743625038761,0.14216157,135.42,135.2,0.563]
[1743625038939,0.42648471,135.34,135.2,0.063]
[1743625039131,57.43710652,135.28,135.2,0.063]
[1743625039454,57.43710652,135.23,135.2,0.063]
[1743625039653,83.43710652,135.21,135.2,0.0001]
[1743625039844,26.0,135.17,135.09,1.0]
[1743625040159,2.959402,135.7,135.23,0.5]
[1743625040448,0.5,135.8,135.32,57.43710652]
[1743625040631,1.39218959,135.69,135.33,13.02757258]
[1743625040831,57.43710652,135.59,135.36,26.0]
[1743625041051,36.99734158,135.73,135.36,279.28]
[1743625041253,1.39218959,135.72,135.5,57.43710652]
[1743625041455,57.43710652,135.53,135.36,279.28]
[1743625041669,253.28,135.61,135.34,6.31143123]
[1743625041841,25.8168,135.57,135.34,6.31143123]
[1743625042161,25.8168,135.57,135.37,26.0]
[1743625042453,75.87390652,135.6,135.51,57.43710652]
[1743625042756,25.8135,135.59,135.4,253.22]
[1743625042931,25.8135,135.59,135.34,7.3885]
[1743625042932,62.6893,135.59,135.32,57.43710652]
[1743625043132,62.6893,135.59,135.29,7.3909]
[1743625043133,26.0,135.51,135.29,7.3909]
[1743625043371,253.22,135.58,135.29,7.3909]
[1743625043540,253.22,135.58,135.32,57.43710652]
[1743625043738,26.0,135.54,135.41,57.43710652]
[1743625043941,99.10738688,135.57,135.31,0.063]
[1743625044140,57.43710652,135.42,135.31,0.063]
[1743625044341,1.349549,135.56,135.31,0.063]
[1743625044342,57.43710652,135.38,135.31,0.063]
[1743625044543,57.43710652,135.49,135.31,0.063]
[1743625044743,57.43710652,135.33,135.31,0.063]
[1743625045064,26.0,135.38,135.31,0.063]
[1743625045236,57.43710652,135.35,135.31,0.063]
[1743625045571,26.0,135.46,135.31,0.063]
[1743625045748,36.8813,135.57,135.32,83.43710652]
[1743625045946,0.03,135.6,135.32,83.43710652]
[1743625045947,7.3751,135.59,135.35,0.5]
[1743625046256,0.03,135.6,135.56,57.43710652]
[1743625046458,0.03,135.6,135.52,26.0]
[1743625046660,0.03,135.6,135.36,253.24]
[1743625046961,0.03,135.6,135.4,26.0]
[1743625047456,0.03,135.6,135.51,57.43710652]
[1743625047657,0.03,135.6,135.39,26.0]
[1743625047858,0.03,135.6,135.4,7.3855]
[1743625048156,44.211,135.72,135.62,26.0]
[1743625048157,1.349549,135.72,135.62,26.0]
[1743625048362,7.3675,135.73,135.57,26.0]
[1743625048561,1.4634723,135.74,135.57,26.0]
[1743625048764,8.8306723,135.74,135.54,253.18]
[1743625048939,45.6657723,135.74,135.52,26.0]
[1743625049263,1.4634723,135.74,135.52,26.0]
[1743625049441,1.4634723,135.74,135.72,57.43710652]
[1743625049636,1.4634723,135.74,135.61,26.0]
[1743625049834,57.43710652,135.71,135.49,310.61710652]
[1743625050039,57.43710652,135.7,135.53,26.0]
[1743625050255,1.4634723,135.74,135.69,57.43710652]
[1743625050561,60.87057882,136.0,135.73,57.43710652]
[1743625050763,57.43710652,135.84,135.71,0.28432314]
[1743625050962,57.43710652,135.8,135.69,26.0]
[1743625051264,57.43710652,135.82,135.7,18.64964886]
[1743625051435,0.14216157,135.84,135.73,57.43710652]
[1743625051639,7.3599,135.87,135.74,57.43710652]
[1743625051863,25.7485,135.93,135.72,18.64964886]
[1743625052048,62.5321,135.93,135.67,18.79181043]
[1743625052361,57.43710652,135.81,135.68,0.14216157]
[1743625052570,0.14216157,135.83,135.67,18.64964886]
[1743625052864,57.43710652,135.72,135.5,36.00343652]
[1743625053074,1.349549,135.82,135.5,26.3301]
[1743625053361,18.933972,135.85,135.55,18.65547688]
[1743625053543,0.14216157,135.85,135.56,18.79181043]
[1743625053865,64.80410652,135.74,135.67,57.43710652]
[1743625054072,0.42648471,135.73,135.39,0.5]
[1743625054367,57.43710652,135.65,135.42,18.65547688]
[1743625054557,0.28432314,135.64,135.57,57.43710652]
[1743625054757,83.43710652,135.65,135.58,57.43710652]
[1743625054949,99.4547,135.74,135.44,260.4631]
[1743625055157,7.367,135.74,135.69,57.43710652]
[1743625055664,57.43710652,135.72,135.5,18.933972]
[1743625055864,26.0,135.72,135.5,26.17141043]
[1743625056058,25.7826,135.75,135.51,0.14216157]
[1743625056255,0.14216157,135.67,135.26,36.81775775]
[1743625056449,0.28432314,135.7,135.57,57.43710652]
[1743625056779,57.43710652,135.61,135.34,0.063]
[1743625056972,57.43710652,135.59,135.34,0.063]
[1743625057145,0.03,135.66,135.35,44.75068377]
[1743625057346,26.0,135.64,135.38,18.64964886]
[1743625057565,0.14216157,135.62,135.37,18.65547688]
[1743625057969,57.43710652,135.56,135.37,18.65547688]
[1743625058173,62.6796,135.61,135.51,57.43710652]
[1743625058378,25.8092,135.61,135.41,18.64964886]
[1743625058560,7.3724,135.64,135.41,18.64964886]
[1743625058753,7.3599,135.87,135.67,26.0]
[1743625058955,65.77126907,136.0,135.72,0.42648471]
[1743625059155,28.78188492,136.0,135.75,26.0]
[1743625059354,252.94,136.13,135.8,0.28432314]
[1743625059579,57.43710652,135.95,135.81,0.28432314]
[1743625059761,36.44780337,136.11,135.81,0.14216157]
[1743625059967,18.3701,136.09,135.82,0.14216157]
[1743625060280,18.3701,136.09,135.93,57.43710652]
[1743625060470,18.3701,136.09,135.81,252.8]
[1743625060958,57.43710652,135.92,135.81,252.8]
[1743625061156,57.43710652,135.9,135.77,0.14216157]
[1743625061376,0.14216157,136.08,135.87,57.43710652]
[1743625061578,0.14216157,136.08,135.82,0.28432314]
[1743625061579,55.1104,136.09,135.89,57.43710652]
[1743625061758,55.1104,136.09,135.93,57.43710652]
[1743625061956,36.7403,136.09,135.92,18.79181043]
[1743625062184,36.7403,136.09,136.0,57.43710652]
[1743625062389,25.7125,136.12,135.97,0.28432314]
[1743625062560,25.7125,136.12,135.97,18.64964886]
[1743625062882,25.7125,136.12,135.91,26.0]
[1743625063086,57.43710652,136.02,135.88,0.14216157]
[1743625063269,278.3325,136.12,135.76,18.79181043]
[1743625063460,315.0647,136.12,135.96,57.43710652]
[1743625063656,57.43710652,135.98,135.75,18.65547688]
[1743625063858,7.3551,135.96,135.78,0.14216157]
[1743625064080,7.3461,136.13,135.99,26.0]
[1743625064285,7.3461,136.13,136.02,0.28432314]
[1743625064576,7.3461,136.13,136.1,57.43710652]
[1743625064783,7.3459,136.13,136.0,57.43710652]
[1743625065088,0.28158672,136.14,136.13,0.14216157]
[1743625065384,7.62698672,136.14,136.01,19.07613357]
[1743625065590,25.99038672,136.14,135.9,18.65547688]
[1743625065801,57.43710652,136.0,135.77,7.3653]
[1743625065967,57.43710652,136.0,135.75,18.4159]
[1743625065968,25.739,135.98,135.73,7.3675]
[1743625066171,25.739,135.98,135.65,7.3719]
[1743625066397,26.0,135.94,135.67,0.04419888]
[1743625066569,57.43710652,135.86,135.67,0.04419888]
[1743625066766,7.354,135.98,135.84,57.43710652]
[1743625066968,57.43710652,136.12,135.97,57.43710652]
[1743625067269,25.7106,136.13,135.88,0.14216157]
[1743625067475,25.7106,136.13,135.86,36.79427495]
[1743625067671,18.64964886,136.12,135.89,0.14216157]
[1743625067875,57.43710652,136.09,135.89,0.14216157]
[1743625068079,7.3475,136.1,136.05,57.43710652]
[1743625068278,7.3475,136.1,136.02,57.43710652]
[1743625068577,7.3475,136.1,136.04,57.43710652]
[1743625068872,57.43710652,136.05,135.73,252.42]
[1743625069075,57.43710652,136.03,135.79,18.4095]
[1743625069282,57.43710652,136.03,135.77,8.88018647]
[1743625069283,9.99,136.0,135.84,18.79181043]
[1743625069501,9.99,136.0,135.93,57.43710652]
[1743625069702,9.99,136.0,135.79,8.88018647]
[1743625070000,57.43710652,135.9,135.67,7.3708]
[1743625070198,0.14216157,135.94,135.82,57.43710652]
[1743625070499,0.14216157,135.79,135.51,252.32]
[1743625070669,57.43710652,135.73,135.51,252.32]
[1743625070869,57.43710652,135.7,135.49,57.43710652]
[1743625071096,26.0,135.76,135.49,57.43710652]
[1743625071097,210.1357,135.95,135.49,57.43710652]
[1743625071272,62.5229,135.95,135.66,57.43710652]
[1743625071474,57.43710652,135.82,135.67,26.0]
[1743625071696,26.0,135.9,135.63,252.32]
[1743625071889,26.0,135.86,135.58,252.4]
[1743625072093,26.0,135.76,135.61,9.34537486]
[1743625072270,26.0,135.8,135.49,64.81770652]
[1743625072473,26.0,135.75,135.49,57.43710652]
[1743625073093,57.43710652,135.69,135.6,57.43710652]
[1743625073270,57.43710652,135.63,135.41,7.3849]
[1743625073471,57.43710652,135.61,135.52,57.43710652]
[1743625073700,57.43710652,135.61,135.53,57.43710652]
[1743625073982,252.4,135.78,135.4,296.17553538]
[1743625073983,26.0,135.71,135.56,57.43710652]
[1743625074303,26.0,135.71,135.58,57.43710652]
[1743625074514,26.0,135.71,135.41,25.8473]
[1743625074675,57.43710652,135.67,135.49,57.43710652]
[1743625075185,57.43710652,135.63,135.41,7.3849]
[1743625075384,57.43710652,135.63,135.4,252.4]
[1743625075385,62.6196,135.74,135.4,259.7854]
[1743625075587,26.0,135.71,135.4,259.7854]
[1743625075793,7.88612011,135.8,135.7,57.43710652]
[1743625075985,25.7409,135.97,135.77,57.43710652]
[1743625076186,25.7409,135.97,135.61,252.56]
[1743625076479,26.0,135.8,135.5,7.38]
[1743625076845,57.43710652,135.68,135.5,7.38]
[1743625077011,57.43710652,135.68,135.49,57.43710652]